[Event "*** SCC Grand Prix: Titled Tuesday Blitz"]
[Site "Chess.com"]
[Date "2020.07.07"]
[Round "5"]
[White "FabianoCaruana"]
[Black "Sankalp_Gupta2003"]
[Result "1-0"]
[WhiteElo "2987"]
[BlackElo "2831"]
[TimeControl "180+1"]
[EndTime "10:54:51 PDT"]
[Termination "FabianoCaruana won on time"]

1. d4 {[%clk 0:03:00.9]} 1... Nf6 {[%clk 0:02:46.5]} 2. Nf3 {[%clk 0:03:01.8]}
2... e6 {[%clk 0:02:46.3]} 3. g3 {[%clk 0:03:02.7]} 3... b5 {[%clk 0:02:44]} 4.
Bg2 {[%clk 0:03:03.6]} 4... Bb7 {[%clk 0:02:44.5]} 5. O-O {[%clk 0:03:03.9]}
5... Be7 {[%clk 0:02:44.2]} 6. c3 {[%clk 0:03:04.1]} 6... O-O {[%clk 0:02:44.2]}
7. a4 {[%clk 0:03:04.2]} 7... b4 {[%clk 0:02:41.2]} 8. a5 {[%clk 0:03:03.3]}
8... Na6 {[%clk 0:02:37.7]} 9. Nbd2 {[%clk 0:03:01.2]} 9... c5 {[%clk
0:02:37.7]} 10. Re1 {[%clk 0:02:58.6]} 10... Rc8 {[%clk 0:02:33.7]} 11. e4
{[%clk 0:02:52.4]} 11... bxc3 {[%clk 0:02:33.4]} 12. bxc3 {[%clk 0:02:53.3]}
12... cxd4 {[%clk 0:02:30.5]} 13. cxd4 {[%clk 0:02:54.2]} 13... Bb4 {[%clk
0:02:29.6]} 14. Ba3 {[%clk 0:02:53.6]} 14... Bxa3 {[%clk 0:02:15.4]} 15. Rxa3
{[%clk 0:02:54.5]} 15... d6 {[%clk 0:02:16.1]} 16. Qb1 {[%clk 0:02:46.2]} 16...
Rc7 {[%clk 0:02:14.4]} 17. Rb3 {[%clk 0:02:44.5]} 17... Ba8 {[%clk 0:01:53.5]}
18. h3 {[%clk 0:02:41]} 18... Qc8 {[%clk 0:01:48.8]} 19. e5 {[%clk 0:02:34.8]}
19... dxe5 {[%clk 0:01:43.8]} 20. dxe5 {[%clk 0:02:35.7]} 20... Nd5 {[%clk
0:01:44.4]} 21. Ng5 {[%clk 0:02:35]} 21... g6 {[%clk 0:01:42]} 22. Nde4 {[%clk
0:02:31.6]} 22... h6 {[%clk 0:01:37.7]} 23. Nd6 {[%clk 0:02:27.8]} 23... Qd7
{[%clk 0:01:33]} 24. Nge4 {[%clk 0:02:27.1]} 24... Kg7 {[%clk 0:01:29.4]} 25. h4
{[%clk 0:02:23.3]} 25... Nc5 {[%clk 0:01:27.9]} 26. Nxc5 {[%clk 0:02:23.1]}
26... Rxc5 {[%clk 0:01:28.8]} 27. Rb8 {[%clk 0:02:07.7]} 27... Nc3 {[%clk
0:01:22.4]} 28. Qb4 {[%clk 0:01:32.3]} 28... Rxb8 {[%clk 0:01:16]} 29. Qxc5
{[%clk 0:01:31.3]} 29... Bxg2 {[%clk 0:01:13.7]} 30. Kxg2 {[%clk 0:01:32.2]}
30... Nd5 {[%clk 0:01:06.9]} 31. Rd1 {[%clk 0:01:28.6]} 31... Rb2 {[%clk
0:01:04.8]} 32. Rd3 {[%clk 0:01:25.3]} 32... Kh7 {[%clk 0:00:39.2]} 33. Rf3
{[%clk 0:01:23.1]} 33... Rb7 {[%clk 0:00:07.2]} 34. Nxb7 {[%clk 0:01:12.4]}
34... Qxb7 {[%clk 0:00:04.7]} 35. a6 {[%clk 0:01:11]} 35... Qd7 {[%clk
0:00:01.5]} 36. Qf8 {[%clk 0:01:10.7]} 1-0

[Event "*** SCC Grand Prix: Titled Tuesday Blitz"]
[Site "Chess.com"]
[Date "2020.07.07"]
[Round "5"]
[White "vladislavkovalev"]
[Black "fighter2jz"]
[Result "1-0"]
[WhiteElo "2942"]
[BlackElo "2809"]
[TimeControl "180+1"]
[EndTime "10:54:53 PDT"]
[Termination "vladislavkovalev won by resignation"]

1. e4 {[%clk 0:03:00.9]} 1... c5 {[%clk 0:02:59.3]} 2. Be2 {[%clk 0:03:00.6]}
2... Nc6 {[%clk 0:02:54.9]} 3. d3 {[%clk 0:03:01.5]} 3... g6 {[%clk 0:02:54.3]}
4. f4 {[%clk 0:03:02]} 4... Bg7 {[%clk 0:02:54.3]} 5. Nf3 {[%clk 0:03:02.9]}
5... d6 {[%clk 0:02:53.3]} 6. O-O {[%clk 0:03:02.9]} 6... Nf6 {[%clk 0:02:53.4]}
7. c3 {[%clk 0:03:03.5]} 7... O-O {[%clk 0:02:53.1]} 8. Kh1 {[%clk 0:03:04.1]}
8... Rb8 {[%clk 0:02:53]} 9. Be3 {[%clk 0:03:02.1]} 9... b5 {[%clk 0:02:51.7]}
10. a3 {[%clk 0:03:02.6]} 10... a5 {[%clk 0:02:50.1]} 11. Nbd2 {[%clk
0:03:02.4]} 11... b4 {[%clk 0:02:49.4]} 12. axb4 {[%clk 0:03:03.3]} 12... axb4
{[%clk 0:02:49]} 13. d4 {[%clk 0:03:03.7]} 13... bxc3 {[%clk 0:02:41.5]} 14.
bxc3 {[%clk 0:03:04.6]} 14... cxd4 {[%clk 0:01:59]} 15. cxd4 {[%clk 0:03:05.5]}
15... Bg4 {[%clk 0:01:59.3]} 16. d5 {[%clk 0:03:01.8]} 16... Nb4 {[%clk
0:01:48.3]} 17. Nd4 {[%clk 0:02:59.4]} 17... Bxe2 {[%clk 0:01:44.9]} 18. Qxe2
{[%clk 0:03:00.3]} 18... Nd7 {[%clk 0:01:42.7]} 19. Ra7 {[%clk 0:02:52.4]} 19...
Nc5 {[%clk 0:01:09.4]} 20. Nc6 {[%clk 0:02:36.6]} 20... Nxc6 {[%clk 0:01:09]}
21. dxc6 {[%clk 0:02:37.5]} 21... Qb6 {[%clk 0:01:01.7]} 22. Rxe7 {[%clk
0:02:37.8]} 22... Qxc6 {[%clk 0:01:01.9]} 23. Qc4 {[%clk 0:02:25.6]} 23... Rb2
{[%clk 0:00:48.4]} 24. f5 {[%clk 0:02:12.3]} 24... Qb5 {[%clk 0:00:27]} 25. fxg6
{[%clk 0:02:02.4]} 25... Qxc4 {[%clk 0:00:14.2]} 26. Nxc4 {[%clk 0:02:03.3]}
26... fxg6 {[%clk 0:00:13.6]} 27. Rxg7+ {[%clk 0:01:43.1]} 27... Kxg7 {[%clk
0:00:13.8]} 28. Bd4+ {[%clk 0:01:43.7]} 28... Kh6 {[%clk 0:00:14]} 29. Rxf8
{[%clk 0:01:44]} 29... Rb1+ {[%clk 0:00:14.2]} 30. Bg1 {[%clk 0:01:44]} 30...
Nxe4 {[%clk 0:00:15.1]} 31. Ne3 {[%clk 0:01:32.7]} 31... Kg7 {[%clk 0:00:12.4]}
32. Rf1 {[%clk 0:01:32.6]} 32... Rb3 {[%clk 0:00:11.6]} 33. Rd1 {[%clk
0:01:28.9]} 33... Kf7 {[%clk 0:00:09.1]} 34. Rd4 {[%clk 0:01:16.4]} 34... Nc3
{[%clk 0:00:03.5]} 35. Rd3 {[%clk 0:01:16.1]} 35... Ke6 {[%clk 0:00:02.9]} 36.
Nd1 {[%clk 0:01:10.6]} 1-0

[Event "*** SCC Grand Prix: Titled Tuesday Blitz"]
[Site "Chess.com"]
[Date "2020.07.07"]
[Round "5"]
[White "tigra"]
[Black "Sammed_Shete"]
[Result "1-0"]
[WhiteElo "2793"]
[BlackElo "2601"]
[TimeControl "180+1"]
[EndTime "10:54:54 PDT"]
[Termination "tigra won by resignation"]

1. e4 {[%clk 0:03:00.9]} 1... c5 {[%clk 0:02:59.4]} 2. Nf3 {[%clk 0:03:00.8]}
2... Nc6 {[%clk 0:02:59.8]} 3. d4 {[%clk 0:02:59.2]} 3... cxd4 {[%clk
0:03:00.7]} 4. Nxd4 {[%clk 0:02:59.9]} 4... Nf6 {[%clk 0:03:01.2]} 5. Nc3 {[%clk
0:03:00]} 5... d6 {[%clk 0:03:01.8]} 6. Bg5 {[%clk 0:02:57.7]} 6... e6 {[%clk
0:03:02.2]} 7. Qd2 {[%clk 0:02:57.8]} 7... a6 {[%clk 0:03:02.6]} 8. O-O-O {[%clk
0:02:57.8]} 8... Be7 {[%clk 0:02:59.7]} 9. f4 {[%clk 0:02:55.1]} 9... Bd7 {[%clk
0:02:59.5]} 10. Kb1 {[%clk 0:02:51.7]} 10... b5 {[%clk 0:02:57.3]} 11. Nxc6
{[%clk 0:02:46.8]} 11... Bxc6 {[%clk 0:02:56.4]} 12. Qe1 {[%clk 0:02:44.4]}
12... b4 {[%clk 0:02:47.8]} 13. e5 {[%clk 0:02:44.6]} 13... bxc3 {[%clk
0:02:41.6]} 14. Qxc3 {[%clk 0:02:41.4]} 14... Rc8 {[%clk 0:02:25.9]} 15. exf6
{[%clk 0:02:41]} 15... gxf6 {[%clk 0:02:10.4]} 16. Bxa6 {[%clk 0:02:39.7]} 16...
Rc7 {[%clk 0:02:08.5]} 17. Bd3 {[%clk 0:02:31.9]} 17... h5 {[%clk 0:01:27.7]}
18. Rhe1 {[%clk 0:02:23.8]} 18... Bxg2 {[%clk 0:01:07.7]} 19. Bb5+ {[%clk
0:02:04.7]} 19... Kf8 {[%clk 0:01:06.7]} 20. Qg3 {[%clk 0:02:00.9]} 20... Qa8
{[%clk 0:00:35.6]} 21. Bh4 {[%clk 0:02:00.1]} 21... Be4 {[%clk 0:00:19.6]} 22.
Bd3 {[%clk 0:01:57.6]} 22... Bxd3 {[%clk 0:00:18.4]} 23. Qxd3 {[%clk 0:01:58.5]}
23... d5 {[%clk 0:00:18.9]} 24. f5 {[%clk 0:01:56.2]} 24... Ra7 {[%clk
0:00:18.9]} 25. a3 {[%clk 0:01:43.7]} 25... Ra4 {[%clk 0:00:17.2]} 26. Bg3
{[%clk 0:01:19.2]} 26... Kg7 {[%clk 0:00:16.4]} 27. fxe6 {[%clk 0:01:12]} 27...
Bxa3 {[%clk 0:00:16.6]} 28. bxa3 {[%clk 0:01:10.4]} 28... Rxa3 {[%clk
0:00:17.5]} 29. Qd4 {[%clk 0:01:10.8]} 29... Rc8 {[%clk 0:00:16.7]} 30. Rg1
{[%clk 0:01:07.9]} 30... Qb7+ {[%clk 0:00:14.2]} 31. Qb2 {[%clk 0:01:04.1]}
31... Qa6 {[%clk 0:00:04.6]} 32. Bd6+ {[%clk 0:01:00.9]} 32... Kh7 {[%clk
0:00:04.6]} 33. Bxa3 {[%clk 0:00:58.6]} 1-0

[Event "*** SCC Grand Prix: Titled Tuesday Blitz"]
[Site "Chess.com"]
[Date "2020.07.07"]
[Round "5"]
[White "Gerodot71"]
[Black "26andrej26"]
[Result "1-0"]
[WhiteElo "2390"]
[BlackElo "2506"]
[TimeControl "180+1"]
[EndTime "10:54:56 PDT"]
[Termination "Gerodot71 won on time"]

1. d4 {[%clk 0:03:00.9]} 1... Nf6 {[%clk 0:01:44.1]} 2. c4 {[%clk 0:02:59.7]}
2... g6 {[%clk 0:01:44.4]} 3. Nc3 {[%clk 0:02:59.8]} 3... Bg7 {[%clk 0:01:45.3]}
4. e4 {[%clk 0:02:59.8]} 4... d6 {[%clk 0:01:46.2]} 5. Be2 {[%clk 0:03:00.3]}
5... O-O {[%clk 0:01:46.9]} 6. Be3 {[%clk 0:02:59.1]} 6... e5 {[%clk 0:01:46.5]}
7. d5 {[%clk 0:02:58.4]} 7... Na6 {[%clk 0:01:46.8]} 8. g4 {[%clk 0:02:57.9]}
8... Nc5 {[%clk 0:01:46.9]} 9. f3 {[%clk 0:02:57.9]} 9... a5 {[%clk 0:01:47.2]}
10. h4 {[%clk 0:02:57]} 10... c6 {[%clk 0:01:46.5]} 11. h5 {[%clk 0:02:53.3]}
11... a4 {[%clk 0:01:45.9]} 12. Nh3 {[%clk 0:02:51]} 12... Qa5 {[%clk
0:01:45.1]} 13. Qd2 {[%clk 0:02:49]} 13... cxd5 {[%clk 0:01:33.5]} 14. cxd5
{[%clk 0:02:48.2]} 14... Bd7 {[%clk 0:01:28.5]} 15. Nf2 {[%clk 0:02:19.8]} 15...
Rfc8 {[%clk 0:01:22.3]} 16. Nd3 {[%clk 0:02:12.4]} 16... Nxd3+ {[%clk 0:01:19]}
17. Bxd3 {[%clk 0:02:13.3]} 17... a3 {[%clk 0:01:19.9]} 18. Nd1 {[%clk
0:02:01.7]} 18... Qxd2+ {[%clk 0:01:19.2]} 19. Kxd2 {[%clk 0:02:00.5]} 19...
axb2 {[%clk 0:01:10.2]} 20. Nxb2 {[%clk 0:02:01.4]} 20... b5 {[%clk 0:00:50.5]}
21. h6 {[%clk 0:01:51.1]} 21... Bf8 {[%clk 0:00:48.9]} 22. Rhb1 {[%clk
0:01:46.6]} 22... Ne8 {[%clk 0:00:44]} 23. Nd1 {[%clk 0:01:44.3]} 23... Be7
{[%clk 0:00:43.4]} 24. Nc3 {[%clk 0:01:41]} 24... Nc7 {[%clk 0:00:34.2]} 25.
Nxb5 {[%clk 0:01:33.7]} 25... Nxb5 {[%clk 0:00:28.3]} 26. Bxb5 {[%clk
0:01:34.6]} 26... Bxb5 {[%clk 0:00:28.1]} 27. Rxb5 {[%clk 0:01:35.5]} 27... Bd8
{[%clk 0:00:25.5]} 28. a4 {[%clk 0:01:05.6]} 28... Ba5+ {[%clk 0:00:24.1]} 29.
Ke2 {[%clk 0:00:52.4]} 29... Rc1 {[%clk 0:00:23.9]} 30. Bxc1 {[%clk 0:00:51.5]}
1-0

[Event "*** SCC Grand Prix: Titled Tuesday Blitz"]
[Site "Chess.com"]
[Date "2020.07.07"]
[Round "5"]
[White "GigaQuparadze"]
[Black "anesar92"]
[Result "1-0"]
[WhiteElo "2890"]
[BlackElo "2729"]
[TimeControl "180+1"]
[EndTime "10:54:57 PDT"]
[Termination "GigaQuparadze won by resignation"]

1. e4 {[%clk 0:03:00.9]} 1... c5 {[%clk 0:02:59.4]} 2. Ne2 {[%clk 0:03:00.2]}
2... Nc6 {[%clk 0:02:58.3]} 3. Nbc3 {[%clk 0:02:57.6]} 3... g6 {[%clk
0:02:57.8]} 4. d4 {[%clk 0:02:57.3]} 4... cxd4 {[%clk 0:02:58.1]} 5. Nxd4 {[%clk
0:02:58.2]} 5... Bg7 {[%clk 0:02:58]} 6. Be3 {[%clk 0:02:58.3]} 6... Nf6 {[%clk
0:02:25.1]} 7. Bc4 {[%clk 0:02:56.8]} 7... O-O {[%clk 0:02:24.6]} 8. Bb3 {[%clk
0:02:55]} 8... a5 {[%clk 0:02:24.8]} 9. a4 {[%clk 0:02:49.3]} 9... Ng4 {[%clk
0:02:24.4]} 10. Qxg4 {[%clk 0:02:35.5]} 10... Nxd4 {[%clk 0:02:23.9]} 11. Qd1
{[%clk 0:02:34.9]} 11... Nxb3 {[%clk 0:02:21.6]} 12. cxb3 {[%clk 0:02:35.8]}
12... d6 {[%clk 0:02:17.6]} 13. Bd4 {[%clk 0:02:34.6]} 13... Be6 {[%clk
0:02:13.2]} 14. Bxg7 {[%clk 0:02:34.1]} 14... Kxg7 {[%clk 0:02:14.1]} 15. Qd4+
{[%clk 0:02:33.8]} 15... Kg8 {[%clk 0:02:13.9]} 16. b4 {[%clk 0:02:34]} 16...
Rc8 {[%clk 0:02:00.9]} 17. bxa5 {[%clk 0:02:33.5]} 17... Qxa5 {[%clk 0:01:53.9]}
18. O-O {[%clk 0:02:32.2]} 18... Rc4 {[%clk 0:01:53.9]} 19. Qe3 {[%clk
0:02:31.7]} 19... Rfc8 {[%clk 0:01:52.8]} 20. h4 {[%clk 0:02:30.5]} 20... Qc5
{[%clk 0:01:41.2]} 21. Qxc5 {[%clk 0:02:20.4]} 21... R8xc5 {[%clk 0:01:39.5]}
22. a5 {[%clk 0:02:20.5]} 22... Rb4 {[%clk 0:01:39]} 23. Rfd1 {[%clk 0:02:18.2]}
23... Kg7 {[%clk 0:01:34.2]} 24. g3 {[%clk 0:02:16.5]} 24... h5 {[%clk
0:01:26.2]} 25. Rd2 {[%clk 0:02:16.2]} 25... g5 {[%clk 0:01:06.2]} 26. hxg5
{[%clk 0:02:14.6]} 26... Rxg5 {[%clk 0:01:07.1]} 27. Kh2 {[%clk 0:02:14.6]}
27... Kh6 {[%clk 0:01:00]} 28. f4 {[%clk 0:02:13]} 28... Rc5 {[%clk 0:00:50.7]}
29. Kg2 {[%clk 0:02:12.9]} 29... Bg4 {[%clk 0:00:47.6]} 30. Kf2 {[%clk 0:02:12]}
30... Kg7 {[%clk 0:00:39.5]} 31. Ke3 {[%clk 0:02:10.5]} 31... Rcc4 {[%clk
0:00:34.2]} 32. Ra3 {[%clk 0:02:03.1]} 32... Rc5 {[%clk 0:00:28.7]} 33. Nd5
{[%clk 0:01:59.7]} 33... Rbb5 {[%clk 0:00:24.6]} 34. Nxe7 {[%clk 0:01:59.5]}
34... Rxa5 {[%clk 0:00:22]} 35. Rxa5 {[%clk 0:01:55.8]} 35... Rxa5 {[%clk
0:00:22.9]} 36. Rxd6 {[%clk 0:01:55.6]} 36... Rb5 {[%clk 0:00:22.8]} 37. f5
{[%clk 0:01:50.7]} 37... f6 {[%clk 0:00:19.3]} 38. Nd5 {[%clk 0:01:47.7]} 38...
Rb3+ {[%clk 0:00:19.6]} 39. Kd4 {[%clk 0:01:47.2]} 39... Rxg3 {[%clk 0:00:19.3]}
40. Nxf6 {[%clk 0:01:44.6]} 40... Bf3 {[%clk 0:00:13.6]} 41. Ke5 {[%clk
0:01:40.8]} 41... h4 {[%clk 0:00:09.6]} 42. Rd7+ {[%clk 0:01:41]} 42... Kh6
{[%clk 0:00:09.8]} 43. Kf4 {[%clk 0:01:25.1]} 1-0

[Event "*** SCC Grand Prix: Titled Tuesday Blitz"]
[Site "Chess.com"]
[Date "2020.07.07"]
[Round "5"]
[White "Region_07"]
[Black "AttilaTurzo"]
[Result "0-1"]
[WhiteElo "2357"]
[BlackElo "2509"]
[TimeControl "180+1"]
[EndTime "10:54:57 PDT"]
[Termination "AttilaTurzo won by resignation"]

1. d4 {[%clk 0:02:58.7]} 1... Nf6 {[%clk 0:02:59.5]} 2. Bg5 {[%clk 0:02:56.5]}
2... Ne4 {[%clk 0:02:57.2]} 3. h4 {[%clk 0:02:56.2]} 3... c5 {[%clk 0:02:45.2]}
4. dxc5 {[%clk 0:02:56.2]} 4... Qa5+ {[%clk 0:02:42.4]} 5. Nd2 {[%clk
0:02:52.5]} 5... Nc6 {[%clk 0:02:28.7]} 6. c3 {[%clk 0:02:50.9]} 6... Nxd2
{[%clk 0:02:26]} 7. Qxd2 {[%clk 0:02:48.9]} 7... Qxc5 {[%clk 0:02:26.3]} 8. e4
{[%clk 0:02:49.3]} 8... d6 {[%clk 0:02:18.1]} 9. Nf3 {[%clk 0:02:49.1]} 9... h6
{[%clk 0:01:55.4]} 10. Be3 {[%clk 0:02:47.1]} 10... Qa5 {[%clk 0:01:52.6]} 11.
Nd4 {[%clk 0:02:47.3]} 11... e6 {[%clk 0:01:49.7]} 12. Be2 {[%clk 0:02:43.3]}
12... a6 {[%clk 0:01:49]} 13. g4 {[%clk 0:02:34.5]} 13... Be7 {[%clk 0:01:40.4]}
14. O-O-O {[%clk 0:02:32.2]} 14... Qxa2 {[%clk 0:01:33.8]} 15. g5 {[%clk
0:02:25.8]} 15... h5 {[%clk 0:01:26.4]} 16. g6 {[%clk 0:02:21]} 16... fxg6
{[%clk 0:01:14.6]} 17. Rhg1 {[%clk 0:02:20.3]} 17... Bxh4 {[%clk 0:01:10.4]} 18.
Rxg6 {[%clk 0:02:18.9]} 18... Bf6 {[%clk 0:01:10.1]} 19. Rdg1 {[%clk 0:01:51.4]}
19... Bd7 {[%clk 0:01:08.7]} 20. f4 {[%clk 0:01:47.8]} 20... O-O-O {[%clk
0:01:07.7]} 21. Qc2 {[%clk 0:01:43]} 21... Qa1+ {[%clk 0:01:05]} 22. Kd2 {[%clk
0:01:40.9]} 22... Qa5 {[%clk 0:01:03.7]} 23. b4 {[%clk 0:01:20.9]} 23... Qc7
{[%clk 0:00:53.8]} 24. Nb3 {[%clk 0:01:09.4]} 24... Kb8 {[%clk 0:00:41.2]} 25.
Kc1 {[%clk 0:01:06.4]} 25... Rc8 {[%clk 0:00:35.9]} 26. Kb1 {[%clk 0:01:04.9]}
26... Nxb4 {[%clk 0:00:35.5]} 27. Qd2 {[%clk 0:00:58.6]} 27... Qxc3 {[%clk
0:00:34.4]} 28. Qxc3 {[%clk 0:00:45.5]} 28... Rxc3 {[%clk 0:00:35.3]} 29. Nd4
{[%clk 0:00:25.6]} 29... Rxe3 {[%clk 0:00:33.6]} 30. Bc4 {[%clk 0:00:25]} 30...
Bxd4 {[%clk 0:00:31.8]} 0-1

[Event "*** SCC Grand Prix: Titled Tuesday Blitz"]
[Site "Chess.com"]
[Date "2020.07.07"]
[Round "5"]
[White "Korona_91"]
[Black "allvim"]
[Result "1-0"]
[WhiteElo "2466"]
[BlackElo "2271"]
[TimeControl "180+1"]
[EndTime "10:54:59 PDT"]
[Termination "Korona_91 won on time"]

1. e4 {[%clk 0:03:00.9]} 1... c5 {[%clk 0:02:59.8]} 2. Nf3 {[%clk 0:03:00.9]}
2... d6 {[%clk 0:02:59.5]} 3. Bb5+ {[%clk 0:03:00.6]} 3... Bd7 {[%clk
0:02:59.4]} 4. c4 {[%clk 0:03:00.7]} 4... a6 {[%clk 0:02:44.1]} 5. Bxd7+ {[%clk
0:02:59.6]} 5... Qxd7 {[%clk 0:02:45]} 6. Nc3 {[%clk 0:02:57.4]} 6... e6 {[%clk
0:02:44.9]} 7. d4 {[%clk 0:02:57.6]} 7... cxd4 {[%clk 0:02:45]} 8. Nxd4 {[%clk
0:02:57.9]} 8... Nc6 {[%clk 0:02:45.6]} 9. b3 {[%clk 0:02:56.1]} 9... Nf6 {[%clk
0:02:38.6]} 10. Bb2 {[%clk 0:02:55.6]} 10... Be7 {[%clk 0:02:39.1]} 11. O-O
{[%clk 0:02:54.9]} 11... O-O {[%clk 0:02:39.1]} 12. Nc2 {[%clk 0:02:49.8]} 12...
Rac8 {[%clk 0:02:35.9]} 13. Qe2 {[%clk 0:02:45.3]} 13... Qc7 {[%clk 0:02:35]}
14. Rad1 {[%clk 0:02:44.8]} 14... Rfd8 {[%clk 0:02:34.5]} 15. Ne3 {[%clk
0:02:40.3]} 15... Nd7 {[%clk 0:02:33.2]} 16. f4 {[%clk 0:02:37.9]} 16... Bf6
{[%clk 0:02:32]} 17. f5 {[%clk 0:02:35.5]} 17... Nd4 {[%clk 0:02:16.2]} 18. Qf2
{[%clk 0:02:30.1]} 18... Qb6 {[%clk 0:02:02.4]} 19. Ng4 {[%clk 0:02:15.2]} 19...
Be5 {[%clk 0:01:31.7]} 20. Kh1 {[%clk 0:02:00]} 20... Nf6 {[%clk 0:01:18.5]} 21.
Nxf6+ {[%clk 0:01:54.8]} 21... Bxf6 {[%clk 0:01:14]} 22. Na4 {[%clk 0:01:55.1]}
22... Qc7 {[%clk 0:00:40.9]} 23. Bxd4 {[%clk 0:01:53.9]} 23... Bxd4 {[%clk
0:00:41.6]} 24. Qxd4 {[%clk 0:01:52.3]} 24... b5 {[%clk 0:00:42]} 25. Nb2 {[%clk
0:01:45.6]} 25... bxc4 {[%clk 0:00:35.2]} 26. Nxc4 {[%clk 0:01:44.8]} 26... d5
{[%clk 0:00:35.5]} 27. exd5 {[%clk 0:01:33.2]} 27... Rxd5 {[%clk 0:00:35]} 28.
Qg4 {[%clk 0:01:32.3]} 28... Re8 {[%clk 0:00:16.9]} 29. fxe6 {[%clk 0:01:23.4]}
29... fxe6 {[%clk 0:00:16.7]} 30. Rde1 {[%clk 0:01:17.4]} 30... e5 {[%clk
0:00:11.8]} 31. Ne3 {[%clk 0:01:13.8]} 31... Rd4 {[%clk 0:00:10.5]} 32. Qg3
{[%clk 0:01:14.1]} 32... Qc3 {[%clk 0:00:04.8]} 33. Qf2 {[%clk 0:01:04.7]} 33...
Rf4 {[%clk 0:00:04.2]} 34. Qe2 {[%clk 0:01:04.3]} 34... Ref8 {[%clk 0:00:04]}
35. Rxf4 {[%clk 0:01:04]} 35... Rxf4 {[%clk 0:00:04]} 36. Nd5 {[%clk 0:01:04.2]}
1-0

[Event "*** SCC Grand Prix: Titled Tuesday Blitz"]
[Site "Chess.com"]
[Date "2020.07.07"]
[Round "5"]
[White "fmshawnrl123"]
[Black "GadimbayliA"]
[Result "0-1"]
[WhiteElo "2644"]
[BlackElo "2895"]
[TimeControl "180+1"]
[EndTime "10:55:00 PDT"]
[Termination "GadimbayliA won by checkmate"]

1. c4 {[%clk 0:03:00.9]} 1... e5 {[%clk 0:02:59.6]} 2. g3 {[%clk 0:02:59.8]}
2... Nf6 {[%clk 0:02:59.8]} 3. Bg2 {[%clk 0:03:00.3]} 3... d5 {[%clk 0:03:00.4]}
4. cxd5 {[%clk 0:03:01.2]} 4... Nxd5 {[%clk 0:03:01.1]} 5. Nc3 {[%clk 0:03:02]}
5... Nb6 {[%clk 0:03:01.6]} 6. Nf3 {[%clk 0:03:02.2]} 6... Nc6 {[%clk 0:03:02]}
7. O-O {[%clk 0:03:02.8]} 7... Be7 {[%clk 0:03:02.4]} 8. a3 {[%clk 0:03:03.4]}
8... O-O {[%clk 0:03:02.8]} 9. b4 {[%clk 0:03:03.6]} 9... Be6 {[%clk 0:03:02.6]}
10. d3 {[%clk 0:03:03.2]} 10... a5 {[%clk 0:02:59.6]} 11. b5 {[%clk 0:03:03.1]}
11... Nd4 {[%clk 0:03:00.2]} 12. Nd2 {[%clk 0:03:03.3]} 12... c6 {[%clk
0:02:58.3]} 13. bxc6 {[%clk 0:03:01.3]} 13... Nxc6 {[%clk 0:02:59.2]} 14. Rb1
{[%clk 0:02:58.3]} 14... a4 {[%clk 0:02:59]} 15. Nde4 {[%clk 0:02:42.8]} 15...
Bb3 {[%clk 0:02:51.3]} 16. Qe1 {[%clk 0:02:40.4]} 16... Nd4 {[%clk 0:02:48.3]}
17. e3 {[%clk 0:02:37.1]} 17... Nc2 {[%clk 0:02:47.3]} 18. Qe2 {[%clk
0:02:32.3]} 18... Nxa3 {[%clk 0:02:47]} 19. Ra1 {[%clk 0:02:21.7]} 19... Nc2
{[%clk 0:02:46.1]} 20. Rb1 {[%clk 0:02:21.9]} 20... Nb4 {[%clk 0:02:43]} 21. d4
{[%clk 0:02:19.3]} 21... Bc4 {[%clk 0:02:40.4]} 22. Qh5 {[%clk 0:02:19.1]} 22...
Bxf1 {[%clk 0:02:38]} 23. Bxf1 {[%clk 0:02:20]} 23... a3 {[%clk 0:02:35.5]} 24.
Qxe5 {[%clk 0:02:07.3]} 24... a2 {[%clk 0:02:16.7]} 25. Ra1 {[%clk 0:02:06.8]}
25... Na4 {[%clk 0:02:05.6]} 26. Nxa2 {[%clk 0:01:49.6]} 26... Nb6 {[%clk
0:01:47.7]} 27. Nec3 {[%clk 0:01:47.8]} 27... Nxa2 {[%clk 0:01:33.3]} 28. Rxa2
{[%clk 0:01:48.7]} 28... Rxa2 {[%clk 0:01:33]} 29. Nxa2 {[%clk 0:01:49.6]} 29...
Qd7 {[%clk 0:01:33.6]} 30. Bb5 {[%clk 0:01:41.2]} 30... Qd6 {[%clk 0:01:29.4]}
31. Qe4 {[%clk 0:01:36.7]} 31... Ra8 {[%clk 0:01:23.3]} 32. Nc3 {[%clk
0:01:27.9]} 32... Ra1 {[%clk 0:01:22.9]} 33. Ne2 {[%clk 0:01:26.1]} 33... Qb4
{[%clk 0:01:18.3]} 34. Bd3 {[%clk 0:01:18.9]} 34... g6 {[%clk 0:01:17.9]} 35.
Qxb7 {[%clk 0:01:17.8]} 35... Qd6 {[%clk 0:00:59]} 36. Kg2 {[%clk 0:01:01.8]}
36... Nd5 {[%clk 0:00:58.3]} 37. e4 {[%clk 0:00:58.5]} 37... Nb4 {[%clk
0:00:58.1]} 38. Bf4 {[%clk 0:00:57.8]} 38... Qd8 {[%clk 0:00:48.9]} 39. Bc4
{[%clk 0:00:55.6]} 39... Qf8 {[%clk 0:00:46.4]} 40. d5 {[%clk 0:00:47.7]} 40...
Nc2 {[%clk 0:00:44.6]} 41. d6 {[%clk 0:00:45.4]} 41... Ne1+ {[%clk 0:00:44.3]}
42. Kh3 {[%clk 0:00:45.2]} 42... Bxd6 {[%clk 0:00:43.5]} 43. Bxd6 {[%clk
0:00:46.1]} 43... Qh6+ {[%clk 0:00:41]} 44. Kg4 {[%clk 0:00:42.9]} 44... Qh5+
{[%clk 0:00:41.3]} 45. Kf4 {[%clk 0:00:40]} 45... Ng2# {[%clk 0:00:41.7]} 0-1

[Event "*** SCC Grand Prix: Titled Tuesday Blitz"]
[Site "Chess.com"]
[Date "2020.07.07"]
[Round "5"]
[White "bmt011"]
[Black "PattyCastillo"]
[Result "1-0"]
[WhiteElo "2118"]
[BlackElo "1939"]
[TimeControl "180+1"]
[EndTime "10:55:01 PDT"]
[Termination "bmt011 won on time"]

1. d4 {[%clk 0:03:00.9]} 1... d5 {[%clk 0:02:56.7]} 2. Bf4 {[%clk 0:03:00.4]}
2... Nf6 {[%clk 0:02:53.3]} 3. e3 {[%clk 0:03:00.4]} 3... c5 {[%clk 0:02:53.5]}
4. c3 {[%clk 0:02:59.7]} 4... Nc6 {[%clk 0:02:51.7]} 5. Nd2 {[%clk 0:02:57.8]}
5... e6 {[%clk 0:02:49.7]} 6. Ngf3 {[%clk 0:02:51.6]} 6... Bd6 {[%clk
0:02:49.1]} 7. Ne5 {[%clk 0:02:43.1]} 7... O-O {[%clk 0:02:26.1]} 8. Bb5 {[%clk
0:02:35.3]} 8... Bd7 {[%clk 0:01:42.7]} 9. Nxf7 {[%clk 0:02:25.7]} 9... Rxf7
{[%clk 0:01:35.6]} 10. Bxd6 {[%clk 0:02:25.5]} 10... cxd4 {[%clk 0:01:33.4]} 11.
exd4 {[%clk 0:02:09.4]} 11... Nxd4 {[%clk 0:01:22.1]} 12. Bxd7 {[%clk
0:01:02.7]} 12... Qxd7 {[%clk 0:01:12.3]} 13. cxd4 {[%clk 0:01:02.9]} 13... Qxd6
{[%clk 0:01:12.2]} 14. O-O {[%clk 0:01:03.1]} 14... Qf4 {[%clk 0:00:57.5]} 15.
Nf3 {[%clk 0:00:55.4]} 15... Ne4 {[%clk 0:00:50]} 16. Qc1 {[%clk 0:00:50.4]}
16... Qg4 {[%clk 0:00:34.5]} 17. h3 {[%clk 0:00:47.5]} 17... Qg6 {[%clk
0:00:28.5]} 18. Ne5 {[%clk 0:00:46.8]} 18... Qf5 {[%clk 0:00:11.1]} 19. Nxf7
{[%clk 0:00:47]} 19... Qxf7 {[%clk 0:00:10.3]} 20. Qe3 {[%clk 0:00:45.1]} 20...
Re8 {[%clk 0:00:08.1]} 21. Rfe1 {[%clk 0:00:42]} 21... Qf6 {[%clk 0:00:06.2]}
22. f3 {[%clk 0:00:41.7]} 22... Ng5 {[%clk 0:00:05]} 23. Rac1 {[%clk 0:00:38.3]}
23... Qg6 {[%clk 0:00:03.5]} 24. Rc2 {[%clk 0:00:38]} 24... Nxh3+ {[%clk
0:00:02.8]} 25. Kh2 {[%clk 0:00:36.4]} 25... Ng5 {[%clk 0:00:02.7]} 26. Rc7
{[%clk 0:00:34]} 1-0